bitfinex-derivatives/quotes_ETHF0:USTF0_20250103
["timestamp","ask_amount","ask_price","bid_price","bid_amount"]
[1735891417587,3.2078,3435.9,3435.8,1.133]
[1735891418796,3.49909,3435.9,3435.8,1.133]
[1735891422889,3.49909,3435.9,3435.3,3.2078]
[1735891423097,0.29133,3435.5,3435.4,1.133]
[1735891423395,3.2078,3435.5,3435.4,1.133]
[1735891423615,3.49912,3435.5,3435.4,1.133]
[1735891423784,3.49912,3435.5,3435.2,4.56172644]
[1735891423785,0.29134,3435.3,3435.2,4.56172644]
[1735891423985,0.29134,3435.3,3435.2,1.133]
[1735891424190,0.29135,3435.2,3435.1,4.56172644]
[1735891424398,0.29135,3435.2,3435.1,5.69472644]
[1735891424697,0.29135,3435.2,3435.1,4.56172644]
[1735891425492,0.29135,3435.1,3435.0,1.133]
[1735891425703,3.49915,3435.1,3435.0,1.133]
[1735891425900,3.2078,3435.1,3434.6,0.2914]
[1735891426203,0.29138,3434.8,3434.7,1.133]
[1735891427195,0.29138,3434.8,3434.6,0.2914]
[1735891427394,0.29138,3434.8,3434.7,1.133]
[1735891427601,3.2078,3435.1,3434.7,1.133]
[1735891427804,0.29137,3435.0,3434.7,1.42438]
[1735891428212,0.29137,3435.0,3434.7,1.133]
[1735891428400,3.2078,3435.1,3434.7,1.133]
[1735891428494,3.2078,3435.1,3435.0,0.29136]
[1735891428726,0.29134,3435.3,3434.7,1.133]
[1735891429005,0.29134,3435.3,3435.0,0.29135]
[1735891430098,0.29134,3435.3,3434.7,1.133]
[1735891430099,0.29133,3435.4,3435.2,0.29135]
[1735891430701,3.2078,3435.6,3434.7,1.133]
[1735891431002,3.49911,3435.6,3435.4,0.29132]
[1735891431201,3.49911,3435.6,3435.5,1.133]
[1735891432207,3.2078,3435.6,3434.8,4.56172644]
[1735891432403,3.2078,3435.2,3434.9,1.133]
[1735891432597,0.29136,3435.0,3434.9,1.133]
[1735891434316,3.49915,3435.2,3434.9,1.133]
[1735891434709,3.49915,3435.2,3435.0,0.29136]
[1735891435111,3.2078,3435.6,3434.9,1.133]
[1735891435303,3.49912,3435.6,3434.9,1.133]
[1735891435603,3.2078,3435.6,3435.5,0.29132]
[1735891436901,0.29129,3435.9,3435.0,0.72841]
[1735891437106,0.29129,3435.9,3435.6,0.29131]
[1735891437304,0.2913,3435.8,3435.7,1.135]
[1735891438055,0.29129,3435.9,3435.7,1.4263]
[1735891438207,3.2078,3436.1,3435.7,1.135]
[1735891438712,0.29128,3436.0,3435.8,0.29129]
[1735891439308,3.2078,3436.1,3435.7,1.135]
[1735891439644,3.49907,3436.1,3435.9,0.29128]
[1735891440010,3.2078,3436.1,3435.7,1.135]
[1735891440207,3.2078,3436.1,3436.0,0.29128]
[1735891440610,3.49907,3436.1,3436.0,0.29128]
[1735891440805,3.2078,3436.1,3436.0,0.29128]
[1735891444102,3.2078,3436.1,3436.0,2.60575907]
[1735891444515,3.49907,3436.1,3436.0,2.31447907]
[1735891444709,3.49907,3436.1,3435.9,0.29128]
[1735891444710,3.2078,3436.1,3435.9,4.56172644]
[1735891445010,0.29128,3436.0,3435.9,4.56172644]
[1735891445216,0.29128,3436.0,3435.9,5.69672644]
[1735891446013,0.29128,3436.0,3435.9,1.135]
[1735891447418,0.29129,3435.7,3435.6,4.56172644]
[1735891447742,0.29129,3435.7,3435.5,0.29131]
[1735891447743,0.2913,3435.6,3435.5,4.85303644]
[1735891448019,0.2913,3435.6,3435.5,5.69672644]
[1735891448351,0.2913,3435.6,3435.5,4.56172644]
[1735891448509,0.2913,3435.6,3435.5,5.69672644]
[1735891449118,0.2913,3435.6,3435.5,9.84147686]
[1735891449323,0.2913,3435.6,3435.5,8.70647686]
[1735891449524,0.2913,3435.6,3435.5,9.84147686]
[1735891450719,0.2913,3435.6,3435.5,1.135]
[1735891451216,3.4991,3435.7,3435.5,1.42631]
[1735891451424,3.4991,3435.7,3435.6,0.2913]
[1735891451919,3.2078,3435.7,3435.6,0.2913]
[1735891453121,3.49909,3435.7,3435.6,0.2913]
[1735891453526,3.49909,3435.7,3435.6,1.4263]
[1735891455022,3.49909,3435.7,3435.6,1.135]
[1735891456622,3.49909,3435.7,3435.6,1.4263]
[1735891458728,3.2078,3435.7,3435.6,1.4263]
[1735891459129,3.2078,3435.7,3435.6,12.43539261]
[1735891459334,3.2078,3436.2,3435.6,12.14409261]
[1735891459628,3.2078,3436.2,3436.1,2.60573907]
[1735891460528,3.2078,3436.2,3436.1,8.31418668]
[1735891461924,0.29125,3436.3,3436.1,8.31418668]
[1735891462139,0.29125,3436.3,3436.2,0.29125]
[1735891462538,0.29124,3436.4,3436.3,0.29124]
[1735891462830,0.29124,3436.3,3436.2,0.29124]
[1735891463232,3.2078,3436.6,3436.1,8.02292668]
[1735891463435,3.2078,3436.6,3436.1,8.31418668]
[1735891463436,0.29125,3436.2,3436.1,8.31418668]
[1735891463634,3.49905,3436.2,3436.1,8.31418668]
[1735891464636,0.29125,3436.2,3436.1,8.31418668]
[1735891464861,0.29125,3436.2,3436.1,4.57344761]
[1735891465135,0.29125,3436.2,3436.1,12.14164732]
[1735891466342,0.29125,3436.2,3436.1,1.134]
[1735891467634,0.29125,3436.2,3436.1,4.57205505]
[1735891469243,0.29127,3436.0,3435.9,1.134]
[1735891469441,3.49907,3436.0,3435.9,1.134]
[1735891470840,3.49907,3436.0,3435.9,1.42528]
[1735891471332,3.49907,3436.0,3435.9,5.99733505]
[1735891471530,3.49907,3436.0,3435.9,4.86333505]
[1735891471739,3.49907,3436.0,3435.9,5.99733505]
[1735891471935,3.49907,3436.0,3435.9,5.70605505]
[1735891472939,3.49907,3436.0,3435.9,1.134]
[1735891474248,3.49907,3436.0,3435.9,5.70605505]
[1735891476744,3.49907,3436.0,3435.9,1.134]
[1735891477544,3.49907,3436.0,3435.9,1.42528]
[1735891478047,3.49907,3436.0,3435.9,1.134]
[1735891478249,3.49907,3436.0,3435.9,3.73975907]
[1735891478548,3.00418269,3436.3,3435.9,3.73975907]
[1735891478549,2.27605269,3436.3,3435.9,3.44847907]
[1735891478739,2.56730269,3436.3,3436.2,2.60572907]
[1735891479537,2.27605269,3436.3,3436.2,2.60572907]
[1735891479850,0.29124,3436.3,3436.2,11.32784268]
[1735891481041,0.29124,3436.3,3436.2,13.61679122]
[1735891482835,0.29124,3436.3,3436.2,13.32554122]
[1735891483241,0.29124,3436.3,3436.2,13.61679122]
[1735891483543,0.29124,3436.3,3436.2,13.32554122]
[1735891483749,0.29124,3436.3,3436.2,11.01106215]
[1735891484249,0.29124,3436.3,3436.2,4.15005856]
[1735891484753,0.29124,3436.3,3436.2,5.28405856]
[1735891485259,0.29124,3436.3,3436.2,7.59853763]
[1735891485548,0.29124,3436.3,3436.2,7.88978763]
[1735891485750,0.29124,3436.3,3436.2,7.59853763]
[1735891485981,0.29124,3436.3,3436.2,8.3177829]
[1735891487352,0.29124,3436.3,3436.2,10.60073266]
[1735891488045,0.29124,3436.3,3436.2,3.73972907]
[1735891488262,3.2078,3436.4,3436.3,0.29124]
[1735891489352,0.29122,3436.5,3436.2,7.59939419]
[1735891489548,3.49902,3436.5,3436.4,0.29123]
[1735891490346,0.29122,3436.6,3436.3,13.30102575]
[1735891490543,0.29122,3436.6,3436.5,2.60570907]
[1735891490752,0.29122,3436.6,3436.5,2.31447907]
[1735891490949,0.29122,3436.6,3436.5,2.60570907]
[1735891491353,0.29122,3436.6,3436.5,6.75662419]
[1735891492960,0.29122,3436.6,3436.5,13.62072677]
[1735891493459,3.2078,3436.9,3436.5,13.32949677]
[1735891493654,3.49899,3436.9,3436.8,2.60567907]
[1735891494535,3.49899,3436.9,3436.8,2.31447907]
[1735891496274,0.2912,3436.8,3436.7,4.5747203]
[1735891497764,0.29121,3436.7,3436.6,4.8659403]
[1735891498164,0.2912,3436.8,3436.7,0.29121]
[1735891498385,0.2912,3436.8,3436.7,2.60568907]
[1735891498764,0.2912,3436.8,3436.7,2.31447907]
[1735891499471,0.2912,3436.8,3436.7,2.60568907]
[1735891499861,0.2912,3436.8,3436.7,7.17941499]
[1735891500565,0.2912,3436.8,3436.7,6.88820499]
[1735891500764,0.2912,3436.8,3436.7,4.57372592]
[1735891501168,5.2912,3436.8,3436.7,3.98652592]
[1735891501468,5.2912,3436.8,3436.7,2.80012592]
[1735891501469,46.0912,3436.8,3436.7,2.80012592]
[1735891501722,46.0912,3436.8,3436.7,2.13839592]
[1735891502267,46.0912,3436.8,3436.7,1.41503592]
[1735891502673,0.29129,3435.8,3435.7,1.43029]
[1735891502970,3.49909,3435.8,3435.7,1.43029]
[1735891504875,3.49909,3435.8,3435.7,1.139]
[1735891507165,3.49909,3435.8,3435.5,2.60578907]
[1735891507166,3.2078,3435.8,3435.5,2.60578907]
[1735891507382,0.2913,3435.6,3435.5,3.45347907]
[1735891508268,0.2913,3435.6,3435.5,3.74478907]
[1735891508778,0.2913,3435.6,3435.5,3.45347907]
[1735891509977,0.2913,3435.6,3435.5,2.31447907]
[1735891510179,0.2913,3435.6,3435.5,3.45347907]
[1735891511065,0.2913,3435.6,3435.5,3.74478907]
[1735891511275,0.2913,3435.6,3435.5,3.45347907]
[1735891513379,0.2913,3435.6,3435.5,3.74478907]
[1735891513779,0.2913,3435.6,3435.5,3.45347907]
[1735891516280,0.2913,3435.6,3435.5,3.74478907]
[1735891516975,0.2913,3435.6,3435.5,3.45347907]
[1735891518386,0.2913,3435.6,3435.5,3.74478907]
[1735891519478,0.2913,3435.6,3435.5,3.45347907]
[1735891519684,0.2913,3435.6,3435.5,3.74478907]
[1735891523983,3.2078,3435.8,3435.5,3.45347907]
[1735891524287,3.2078,3435.8,3435.7,0.29129]
[1735891526285,0.29126,3436.1,3435.9,0.29127]
[1735891526584,0.29126,3436.1,3436.0,2.60574907]
[1735891527282,2.2791216,3436.8,3436.0,2.31447907]
[1735891527491,0.2912,3436.8,3436.7,2.31447907]
[1735891527686,0.2912,3436.8,3436.7,3.44847907]
[1735891528003,0.29122,3436.5,3436.4,2.31447907]
[1735891528184,0.29122,3436.5,3436.4,3.44847907]
[1735891528485,3.2078,3436.6,3436.4,1.134]
[1735891528681,3.2078,3436.6,3436.1,2.31447907]
[1735891528939,0.29127,3435.9,3435.8,2.31447907]
[1735891529082,3.2078,3436.2,3435.8,3.73975907]
[1735891529595,3.2078,3436.2,3436.1,2.31447907]
[1735891529783,3.49905,3436.2,3436.1,2.31447907]
[1735891530684,3.2078,3436.2,3436.1,2.31447907]
[1735891530883,3.2078,3436.2,3436.1,2.60573907]
[1735891532789,3.2078,3436.2,3436.1,13.52377838]
[1735891536397,3.2078,3436.2,3436.1,2.60573907]
[1735891539093,3.2078,3436.2,3436.1,13.52368064]
[1735891540499,3.2078,3436.2,3436.1,6.66927867]
[1735891541892,3.2078,3436.2,3436.1,13.52368064]
[1735891542694,0.29123,3436.5,3436.3,0.29124]
[1735891542896,0.29123,3436.5,3436.4,2.31447907]
[1735891546405,0.29123,3436.5,3436.4,2.60570907]
[1735891550709,3.49902,3436.6,3436.5,0.29122]
[1735891550903,3.49902,3436.6,3436.5,1.134]
[1735891564209,3.49902,3436.6,3436.5,2.15116015]
[1735891568114,3.49902,3436.6,3436.5,6.22318793]
[1735891569629,3.49902,3436.6,3436.5,13.0775899]
[1735891570124,3.2078,3436.6,3436.5,13.3688299]
[1735891570837,3.2078,3436.6,3436.5,15.65363056]
[1735891571220,3.49903,3436.6,3436.5,15.65363056]
[1735891572218,3.49903,3436.6,3436.5,14.70285219]
[1735891573421,3.2078,3436.6,3436.5,14.70285219]
[1735891576323,3.2078,3436.6,3436.5,26.12685548]
[1735891576723,2.5703316,3436.9,3436.8,0.29121]
[1735891577076,5.7781316,3436.9,3436.8,1.30837015]
[1735891577217,5.4869216,3436.9,3436.8,1.30837015]
[1735891577429,5.7781216,3436.9,3436.8,1.30837015]
[1735891577626,5.7781216,3436.9,3436.8,2.43937015]
[1735891577825,3.499,3436.9,3436.8,6.51139793]
[1735891578825,3.499,3436.9,3436.8,7.52855808]
[1735891579127,3.499,3436.9,3436.8,15.67960484]
[1735891579721,3.499,3436.9,3436.8,15.38839484]
[1735891580157,3.499,3436.9,3436.8,23.57657966]
[1735891580323,3.499,3436.9,3436.8,23.86778966]
[1735891580517,3.499,3436.9,3436.8,24.88494981]
[1735891580923,3.499,3436.9,3436.8,23.86778966]
[1735891581918,3.499,3436.9,3436.8,24.88494981]
[1735891582130,3.2078,3436.9,3436.8,24.88494981]
[1735891582325,3.499,3436.9,3436.8,23.57657966]
[1735891583067,3.499,3436.9,3436.8,21.42841951]
[1735891583225,3.499,3436.9,3436.8,22.44557966]
[1735891583425,3.499,3436.9,3436.8,23.57657966]
[1735891584519,5.78720508,3436.9,3436.8,10.94565192]
[1735891584720,5.78720508,3436.9,3436.8,11.96281207]
[1735891585226,5.78720508,3436.9,3436.8,10.94565192]
[1735891585581,5.78720508,3436.9,3436.8,11.96281207]
[1735891585932,6.9176824,3436.9,3436.8,1.01716015]
[1735891587227,8.49425086,3436.9,3436.8,1.01716015]
[1735891589934,3.93600766,3436.9,3436.8,1.01716015]
[1735891591628,3.93600766,3436.9,3436.5,8.00462414]
[1735891591629,4.66196781,3436.9,3436.5,6.87362414]
[1735891591834,1.30839015,3436.6,3436.5,6.59105606]
[1735891592134,1.30839015,3436.6,3436.5,6.24497191]
[1735891592344,49.39625618,3436.6,3436.5,5.66200191]
[1735891593037,49.39625618,3436.6,3436.5,5.49681569]
[1735891593741,49.39625618,3436.6,3436.5,4.75982774]
[1735891594040,0.29126,3436.2,3436.1,1.01716015]
[1735891594338,0.29129,3435.9,3435.8,1.13]
[1735891595941,0.2913,3435.7,3435.6,2.31531769]
[1735891596137,3.4991,3435.7,3435.6,2.31531769]
[1735891600042,0.2913,3435.7,3435.6,2.31531769]
[1735891600234,3.4991,3435.7,3435.6,2.31531769]
[1735891601763,0.2913,3435.7,3435.6,2.31531769]
[1735891601934,3.4991,3435.7,3435.6,2.31531769]
[1735891603343,3.4991,3435.7,3435.6,3.44631769]
[1735891604241,3.4991,3435.7,3435.6,3.73762769]
[1735891607839,0.7282,3436.1,3435.9,0.29128]
[1735891607840,0.29128,3436.0,3435.9,0.29128]
[1735891608050,0.29128,3436.0,3435.9,2.60659769]
[1735891608861,0.29128,3436.0,3435.9,2.31531769]
[1735891609046,0.72811,3436.5,3435.7,3.2078]
[1735891609243,0.2913,3435.8,3435.7,0.2913]
[1735891610438,3.2078,3436.2,3435.5,9.16820691]
[1735891610643,3.4991,3435.8,3435.7,2.31531769]
[1735891611573,3.4991,3435.8,3435.7,2.60661769]
[1735891611743,3.2078,3435.8,3435.7,2.60661769]
[1735891612256,0.29129,3435.9,3435.8,0.2913]
[1735891612451,0.29128,3436.0,3435.9,0.29129]
[1735891613848,3.2078,3436.2,3435.9,0.29129]
[1735891614245,0.29128,3436.1,3435.6,3.44631769]
[1735891614445,0.29128,3436.0,3435.9,0.29128]
[1735891615554,0.29128,3436.0,3435.9,4.31989493]
[1735891616151,0.29128,3436.0,3435.9,4.02861493]
[1735891616345,0.29128,3436.0,3435.9,6.06336697]
[1735891616948,0.29128,3436.0,3435.9,2.03475204]
[1735891617156,0.29128,3436.0,3435.9,1.01737602]
[1735891621456,0.29128,3436.0,3435.9,1.30866602]
[1735891622557,0.29128,3436.0,3435.9,1.01737602]
[1735891622816,0.29128,3436.0,3435.9,1.30866602]
[1735891623061,0.29128,3436.0,3435.9,1.01737602]
[1735891624657,0.29129,3435.9,3435.8,4.86241055]
[1735891624958,3.2078,3436.2,3435.8,4.57112055]
[1735891625475,0.29129,3435.9,3435.8,8.60267782]
[1735891625655,0.29129,3435.9,3435.8,9.73367782]
[1735891626160,0.29129,3435.9,3435.8,10.75105384]
[1735891626657,0.29129,3435.9,3435.8,6.17993329]
[1735891626869,0.29129,3435.9,3435.8,6.47123329]
[1735891627352,0.29129,3435.9,3435.8,6.47121329]
[1735891627661,0.29126,3436.1,3436.0,0.29126]
[1735891627848,0.29126,3436.1,3436.0,2.32601204]
[1735891628646,0.29126,3436.1,3436.0,2.03475204]
[1735891629055,0.29126,3436.1,3436.0,2.32602204]
[1735891629854,0.29126,3436.1,3436.0,6.35757931]
[1735891630171,0.29126,3436.1,3436.0,6.06630931]
[1735891630456,0.29126,3436.1,3436.0,5.04893329]
[1735891630655,0.29126,3436.1,3436.0,5.34020329]
[1735891631252,0.29126,3436.1,3436.0,5.04893329]
[1735891632250,0.29126,3436.1,3436.0,5.34020329]
[1735891632456,0.29126,3436.1,3436.0,6.35757931]
[1735891633775,0.29126,3436.1,3436.0,5.04893329]
[1735891634255,0.29126,3436.1,3436.0,4.03155727]
[1735891634953,6.30863602,3436.1,3436.0,2.88402073]
[1735891635151,6.30863602,3436.1,3436.0,1.18763073]
[1735891635152,5.29126,3436.1,3436.0,1.18763073]
[1735891635351,9.44504698,3436.1,3435.6,4.57861036]
[1735891635555,4.51647602,3435.7,3435.6,4.57861036]
[1735891636358,45.31647602,3435.7,3435.6,4.57861036]
[1735891636859,0.29134,3435.2,3435.1,1.01737602]
[1735891637160,3.49914,3435.2,3435.1,1.01737602]
[1735891638366,0.29136,3435.0,3434.9,6.00097036]
[1735891638564,0.29136,3435.0,3434.9,5.70961036]
[1735891638957,0.29136,3435.0,3434.9,4.57861036]
[1735891640258,7.60767176,3435.0,3434.9,4.57861036]
[1735891640452,7.60767176,3435.0,3434.5,9.16820691]
[1735891640453,0.2914,3434.5,3434.4,4.57861036]
[1735891640654,3.4992,3434.5,3434.4,4.57861036]
[1735891641263,3.2078,3434.5,3434.2,3.44731176]
[1735891641562,0.29141,3434.3,3434.2,3.44731176]
[1735891646557,0.29141,3434.3,3434.2,2.31631176]
[1735891654179,3.2078,3434.5,3434.0,1.131]
[1735891654384,3.49924,3434.1,3434.0,1.131]
[1735891654982,3.2078,3434.1,3433.6,2.31631176]
[1735891655188,0.29151,3433.3,3433.2,4.57861036]
[1735891655389,3.49931,3433.3,3433.2,4.57861036]
[1735891656177,3.49931,3433.3,3433.0,2.31631176]
[1735891656178,0.29152,3433.1,3433.0,2.31631176]
[1735891661785,3.2078,3433.3,3433.0,2.31631176]
[1735891662098,3.49931,3433.3,3433.2,0.29152]
[1735891662686,3.2078,3433.3,3433.2,0.29152]
[1735891664895,3.2078,3433.3,3433.0,2.31631176]
[1735891665196,3.49931,3433.3,3433.2,0.29152]
[1735891665393,0.29152,3433.2,3433.1,0.29152]
[1735891665591,3.49931,3433.3,3433.1,0.29152]
[1735891666094,3.49931,3433.3,3433.2,0.29152]
[1735891666396,0.29152,3433.2,3433.1,0.29152]
[1735891666696,0.29151,3433.4,3433.2,0.29151]
[1735891666893,0.29151,3433.4,3433.3,2.31631176]
[1735891675395,0.29151,3433.4,3433.3,3.44731176]
[1735891680296,3.2078,3433.5,3433.3,3.44731176]
[1735891680502,3.2078,3433.5,3433.4,0.2915]
[1735891682503,0.29145,3434.1,3433.9,0.29145]
[1735891682728,0.29145,3434.1,3434.0,3.44731176]
[1735891683510,5.48787909,3434.4,3434.3,0.29142]
[1735891683743,3.2078,3434.4,3434.3,2.60773176]
[1735891684016,3.2078,3434.4,3434.3,0.29142]
[1735891684808,3.2078,3434.4,3434.3,0.3825025]
[1735891685206,3.2078,3434.4,3434.3,7.21618596]
[1735891685850,3.2078,3434.9,3434.3,6.92476596]
[1735891686052,0.29137,3435.0,3434.8,2.60769176]
[1735891686203,0.29137,3435.0,3434.9,1.2220825]
[1735891686775,0.29137,3435.0,3434.9,1.22208803]
[1735891687407,0.29137,3435.0,3434.9,1.131]
[1735891687607,0.29137,3435.0,3434.9,1.22208645]
[1735891688313,0.29137,3435.0,3434.9,1.131]
[1735891689509,41.09137,3435.0,3434.9,1.131]
[1735891692817,0.29141,3434.5,3434.4,4.57053936]
[1735891693115,0.29142,3434.3,3434.2,4.57053936]
[1735891693620,41.09142,3434.3,3434.2,4.57053936]
[1735891694816,40.8,3434.3,3433.8,0.29146]
[1735891695121,0.29146,3433.9,3433.8,0.29146]
[1735891695919,3.2078,3434.1,3433.6,1.131]
[1735891696122,0.29147,3433.8,3433.7,0.29147]
[1735891696423,0.29147,3433.8,3433.7,2.60778176]
[1735891697716,0.29147,3433.8,3433.7,2.31631176]
[1735891699218,0.29147,3433.8,3433.7,2.60778176]
[1735891699526,0.29147,3433.9,3433.8,0.29146]
[1735891702822,0.29147,3433.8,3433.7,2.60778176]
[1735891703930,0.29146,3433.9,3433.8,0.29146]
[1735891704236,3.2078,3434.1,3434.0,0.29145]
[1735891704419,3.2078,3434.1,3434.0,2.31631176]
[1735891704621,3.49924,3434.1,3434.0,2.31631176]
[1735891704829,3.49924,3434.1,3434.0,2.60776176]
[1735891707628,0.29144,3434.1,3434.0,2.60776176]
[1735891708628,3.2078,3434.5,3434.0,2.60776176]
[1735891708829,0.29143,3434.2,3434.1,0.29144]
[1735891710426,3.2078,3434.5,3434.0,2.31631176]
[1735891710633,0.29144,3434.1,3434.0,2.31631176]
[1735891710932,0.29144,3434.1,3434.0,2.60776176]
[1735891711931,3.2078,3434.5,3434.0,2.31631176]
[1735891712227,0.29144,3434.2,3434.0,2.60775176]
[1735891712729,0.29144,3434.1,3434.0,2.60775176]
[1735891713429,0.29143,3434.2,3434.1,0.29144]
[1735891713825,3.2078,3434.5,3434.0,2.31631176]
[1735891714023,3.2078,3434.5,3433.8,4.57053936]
[1735891714024,3.49921,3434.5,3434.4,2.31631176]
[1735891715432,0.29141,3434.5,3434.4,2.31631176]
[1735891717620,2.28007909,3435.0,3434.4,2.31631176]
[1735891717825,2.57143909,3435.0,3434.9,2.60768176]
[1735891719229,5.48787909,3435.3,3434.9,2.31631176]
[1735891719531,5.48787909,3435.3,3435.2,2.60766176]
[1735891719743,5.48787909,3435.3,3435.2,3.73866176]
[1735891719938,5.77921909,3435.3,3435.2,3.44731176]
[1735891720233,2.57141909,3435.3,3435.2,3.73866176]
[1735891720432,0.29134,3435.3,3435.2,3.44731176]
[1735891721327,0.29134,3435.3,3435.2,3.73866176]
[1735891721730,0.29134,3435.3,3435.2,3.44731176]
[1735891722034,0.29134,3435.3,3435.2,3.73866176]
[1735891723129,0.29134,3435.3,3435.2,3.44731176]
[1735891723529,0.29134,3435.4,3435.2,3.73865176]
[1735891723735,0.29134,3435.3,3435.2,3.73865176]
[1735891725235,0.29134,3435.3,3435.2,3.44731176]
[1735891726043,0.29133,3435.4,3435.2,3.73866176]
[1735891726334,3.2078,3435.8,3435.2,3.44731176]
[1735891726540,0.29134,3435.3,3435.2,3.44731176]
[1735891735843,0.29134,3435.3,3435.2,3.73866176]
[1735891736045,0.29134,3435.3,3435.2,3.44731176]
[1735891737850,0.29134,3435.3,3435.2,3.73866176]
[1735891739035,3.2078,3435.9,3435.2,3.44731176]
[1735891739242,0.2913,3435.8,3435.6,0.29131]
[1735891739444,3.2078,3435.9,3435.2,1.131]
[1735891739739,3.49909,3435.9,3435.2,1.85937]
[1735891739939,0.2913,3435.8,3435.2,1.85937]
[1735891740139,0.29131,3435.7,3435.6,0.29131]
[1735891740447,0.29131,3435.7,3435.6,2.60762176]
[1735891740958,0.29131,3435.7,3435.6,2.31631176]
[1735891745552,0.29133,3435.4,3435.3,2.31631176]
[1735891745855,0.29133,3435.4,3435.3,3.44731176]
[1735891747048,0.29135,3435.1,3435.0,1.131]
[1735891748147,3.93612,3435.5,3434.7,6.88685112]
[1735891748343,0.29137,3434.9,3434.8,1.131]
[1735891749357,0.29137,3435.0,3434.8,1.131]
[1735891749651,0.29137,3435.0,3434.9,2.31631176]
[1735891749964,3.49917,3435.0,3434.9,2.31631176]
[1735891750748,3.2078,3435.0,3434.8,1.131]
[1735891750953,0.29137,3434.9,3434.8,1.131]
[1735891752454,0.29141,3434.5,3434.4,4.57053936]
[1735891752802,0.29141,3434.5,3434.4,5.70153936]
[1735891752956,0.29141,3434.5,3434.4,1.131]
[1735891753761,0.29141,3434.5,3434.4,1.42241]
[1735891754055,3.2078,3435.0,3434.4,1.131]
[1735891754358,0.29137,3434.9,3434.8,2.31631176]
[1735891757252,0.29141,3434.6,3434.5,2.31631176]
[1735891757561,0.29141,3434.6,3434.5,2.60772176]
[1735891757964,0.29139,3434.7,3434.6,0.29138]
[1735891758162,0.29139,3434.7,3434.6,2.60769176]
[1735891758866,0.29139,3434.7,3434.6,2.31631176]
[1735891759953,0.72846,3434.8,3434.5,1.131]
[1735891760164,0.2914,3434.6,3434.5,1.131]
[1735891760662,0.29141,3434.4,3434.3,2.60773176]
[1735891760864,0.29141,3434.4,3434.3,3.73873176]
[1735891763056,0.29141,3434.4,3434.3,3.44731176]
[1735891767865,0.29141,3434.4,3434.3,3.73873176]
[1735891769570,0.29141,3434.4,3434.3,3.44731176]
[1735891770169,0.29141,3434.4,3434.3,3.73873176]
[1735891770364,0.29141,3434.4,3434.3,2.60773176]
[1735891770667,0.29141,3434.4,3434.3,3.73873176]
[1735891774775,0.29141,3434.5,3434.4,0.29141]
[1735891775167,0.2914,3434.7,3434.6,0.2914]
[1735891775370,0.29139,3434.7,3434.6,2.31631176]
[1735891778376,3.2078,3434.8,3434.4,4.86194936]
[1735891778576,0.29141,3434.5,3434.4,4.86194936]
[1735891778774,0.29141,3434.5,3434.4,4.57053936]
[1735891778968,3.93627,3434.8,3434.3,8.30927112]
[1735891779170,0.29141,3434.4,3434.3,8.30927112]
[1735891780472,0.29141,3434.4,3434.3,3.73873176]
[1735891781377,0.29141,3434.4,3434.3,1.131]
[1735891781781,0.29143,3434.2,3434.1,4.57053936]
[1735891781974,0.29143,3434.2,3434.1,5.70153936]
[1735891782171,3.49923,3434.2,3434.1,4.57053936]
[1735891782369,10.81554176,3434.2,3434.1,4.57053936]
[1735891782683,10.81554176,3434.2,3434.1,2.68453936]
[1735891782878,51.61554176,3434.2,3434.1,2.68453936]
[1735891783081,51.61554176,3434.2,3433.3,0.2915]
[1735891783082,51.32411176,3434.2,3433.7,6.85580904]
[1735891783278,3.49927,3433.8,3433.7,6.85580904]
[1735891784583,3.49927,3433.8,3433.4,2.60781176]
[1735891784777,0.29149,3433.5,3433.4,2.60781176]
[1735891786078,0.72864,3434.0,3433.5,1.02022]
[1735891786079,0.29145,3434.0,3433.5,1.02022]
[1735891786286,0.29145,3434.0,3433.9,0.29145]
[1735891786593,0.29145,3434.0,3433.9,1.131]
[1735891789993,0.29149,3433.5,3433.4,3.44731176]
[1735891790175,3.2078,3433.6,3433.3,7.98680904]
[1735891790489,0.2915,3433.4,3433.3,7.98680904]
[1735891791582,0.2915,3433.4,3433.3,6.85580904]
[1735891792180,0.29152,3433.2,3433.1,3.44731176]
[1735891793079,0.29152,3433.2,3433.1,2.31631176]
[1735891793380,0.29154,3432.9,3432.8,10.4034508]
[1735891793778,0.29154,3432.9,3432.8,6.95613904]
[1735891795790,0.29154,3432.9,3432.8,0.10033]
[1735891802694,3.49934,3432.9,3432.8,0.10033]
[1735891807288,3.49934,3432.9,3432.8,2.41664176]
[1735891807493,3.49934,3432.9,3432.8,0.10033]
[1735891808494,0.29159,3432.3,3432.2,2.31631176]
[1735891810594,0.29159,3432.3,3432.2,3.44731176]
[1735891810994,0.29159,3432.3,3432.2,3.44831176]
[1735891811897,0.29159,3432.3,3432.2,2.31631176]
[1735891828220,40.8,3432.5,3432.2,1.01962066]
[1735891828543,0.29159,3432.3,3432.2,1.01962066]
[1735891830823,0.2916,3432.2,3432.1,1.42361]
[1735891831322,0.2916,3432.2,3432.1,2.44323066]
[1735891836827,0.2916,3432.2,3432.1,9.2990397]
[1735891837222,2.28007909,3432.5,3432.2,0.2916]
[1735891837431,2.57165909,3432.5,3432.4,1.01962066]
[1735891838824,0.29158,3432.5,3432.4,1.01962066]
[1735891839922,0.72910335,3432.5,3432.4,7.89871285]
[1735891841661,0.43752335,3432.5,3432.4,1.31120066]
[1735891841824,0.72910335,3432.5,3432.4,1.31120066]
[1735891842030,0.29158,3432.4,3432.3,6.87909219]
[1735891842327,0.29158,3432.4,3432.3,7.89871285]
[1735891842523,0.29158,3432.4,3432.3,6.87909219]
[1735891842725,1.31120066,3432.4,3432.3,6.87909219]
[1735891843033,0.29159,3432.3,3432.2,9.16820691]
[1735891843310,44.29939,3432.3,3432.2,9.16820691]
[1735891843924,0.29162,3432.0,3431.9,6.88700362]
[1735891845030,0.29163,3431.9,3431.8,6.88700362]
[1735891845430,3.49943,3431.9,3431.8,6.88700362]
[1735891846029,0.29164,3431.8,3431.7,7.17864362]
[1735891846329,0.29164,3431.8,3431.7,6.88700362]